Cogmind - Beta 9.6 @@@ ROGUE MODE // 2020.06.05 @ 10:08:54 Player: OccultOnion Result: Destroyed by Y-45 Defender with Heavy Assault Rifle Performance ------------- Evolutions (1) 500 Regions Visited (2) 400 Robots Destroyed (33) 165 Value Destroyed (805) 805 Prototype IDs (0) 0 Alien Tech Used (0) 0 Bonus (10) 10 TOTAL SCORE: 1880 Bonus ------- High Alert Combat Kills 10 Cogmind --------- Core Integrity 0/400 Matter 295/300 Energy 100/100 System Corruption 0% Temperature Cool (0) Movement Core (350) Ox6 Location -9/Materials Parts ------- > --- POWER (1) -------- (None) > --- PROPULSION (3) --- Light Treads > --- UTILITY (3) ------ Heat Sink Large Storage Unit > --- WEAPON (2) ------- Katana > --- INVENTORY (10) --- Ion Engine Ion Engine Aluminum Leg Improved Aluminum Leg Improved Heat Sink Small Storage Unit Signal Interpreter Light Assault Rifle Peak State ------------ > --- POWER ------------ Ion Engine > --- PROPULSION ------- Aluminum Leg Hover Unit > --- UTILITY ---------- Heat Sink Large Storage Unit System Shield > --- WEAPON ----------- Heavy Particle Cannon Heavy Particle Cannon > --- INVENTORY -------- Improved Ion Engine Aluminum Leg Improved Heat Sink Small Storage Unit Signal Interpreter Heavy Assault Rifle [Rating: 15] Favorites ----------- Power Ion Engine Engine Ion Engine Propulsion Aluminum Leg Treads Light Treads Leg Aluminum Leg Wheel Compact Wheel Hover Unit Hover Unit Utility Large Storage Unit Device Heat Sink Storage Large Storage Unit Hackware System Shield Protection Light Armor Plating Weapon Medium Laser Energy Gun Medium Laser Energy Cannon Heavy Particle Cannon Ballistic Gun Autogun Ballistic Cannon Improved Light Cannon Slashing Weapon Katana Build | -11 -10 -9 ------- Run | Scr Mat Mat Slots Evolved 2 | . . 2 Power . | . . . Propulsion 1 | . . 1 Utility 1 | . . 1 Weapon . | . . . Parts Attached 28 | 1 3 24 Power 3 | . 1 2 Engine 3 | . 1 2 Core . | . . . Reactor . | . . . Propulsion 12 | . . 12 Treads 4 | . . 4 Leg 2 | . . 2 Wheel 3 | . . 3 Hover 3 | . . 3 Flight . | . . . Utility 6 | 1 2 3 Device 2 | . 1 1 Storage 2 | 1 1 . Processor . | . . . Hackware 1 | . . 1 Protection 1 | . . 1 Artifact . | . . . Weapon 7 | . . 7 Energy Gun . | . . . Energy Cannon 2 | . . 2 Ballistic Gun 3 | . . 3 Ballistic Cannon 1 | . . 1 Launcher . | . . . Special Weapon . | . . . Impact Weapon . | . . . Slashing Weapon 1 | . . 1 Piercing Weapon . | . . . Special Melee Weapon . | . . . Unidentified Prototypes . | . . . Parts Lost 25 | . 1 24 Power 4 | . 1 3 Propulsion 10 | . . 10 Utility 3 | . . 3 Weapon 8 | . . 8 Highest Loss Streak 11 | . 1 11 Average Slot Usage (%) 84 | . 91 81 Engine 11 | . 13 10 Treads 9 | . . 13 Leg 11 | . 28 3 Wheel 6 | . . 9 Hover 1 | . . 2 Device 7 | . 5 8 Storage 12 | . 14 11 Protection 1 | . . 2 Energy Gun 11 | . 28 2 Ballistic Gun 5 | . . 8 Ballistic Cannon 2 | . . 3 Slashing Weapon 1 | . . 2 Naked Turns . | . . . Heaviest Build 36 | 15 26 36 Greatest Support 40 | 20 20 40 Greatest Overweight (x) 7 | . 1 7 Average Overweight (x) 1 | . . 1 Largest Inventory Capacity 10 | 8 10 10 Average Capacity 9 | 7 9 10 Most Carried 10 | 6 9 10 Average Carried 7 | 5 7 8 Final Capacity 10 | 8 10 10 Final Carried 8 | 5 8 8 Class Distribution -------------------- 64% | Mutant 35% | Scavenger-Mutant Dominant Class ---------------- Mutant | -10/Materials Scavenger-Mutant | -9/Materials Resources | -11 -10 -9 ----------- Run | Scr Mat Mat Matter Collected 697 | 206 19 472 Remotely . | . . . Salvage Created 1173 | 73 191 909 Parts 67 | 3 8 56 Haulers Intercepted . | . . . Recyclers Shooed . | . . . Parts Field Recycled . | . . . Retrieved Matter . | . . . Parts Self-Destructed . | . . . Prevented . | . . . Kills | -11 -10 -9 ------- Run | Scr Mat Mat Combat Hostiles Destroyed 26 | . 4 22 Guns 18 | . 4 14 Cannons 8 | . . 8 Classes Destroyed 7 | 1 1 5 Worker 4 | . . 4 Builder 1 | . . 1 Recycler 2 | 1 . 1 Swarmer 8 | . . 8 Grunt 14 | . 4 10 Duelist 1 | . . 1 Sentry 3 | . . 3 Best Kill Streak 7 | 1 2 7 Combat Bots Only 6 | . 2 6 Max Kills in Single Turn 2 | 1 1 2 Gunslinging . | . . . Exploded . | . . . Melee . | . . . Uniques/NPCs Destroyed . | . . . Combat | -11 -10 -9 -------- Run | Scr Mat Mat Damage Taken 2621 | . 276 2345 Core 442 | . 27 415 Absorbed by Shields . | . . . Core Remaining (%) 94 | 100 89 . Volleys Fired 93 | 2 22 69 Largest 2 | 2 2 2 Hottest 150 | 90 90 150 Shots Fired 174 | 4 44 126 Gun 126 | 4 44 78 Cannon 48 | . . 48 Launcher . | . . . Special . | . . . Kinetic 100 | . . 100 Thermal 47 | 2 22 23 Explosive . | . . . Electromagnetic 27 | 2 22 3 Robot Hit Streak 15 | 4 14 15 Robot Miss Streak 5 | . 2 5 Penetration Max . | . . . Secondary Targets . | . . . Shots Hit Robots 110 | 4 36 70 Core Hits 50 | 1 11 38 Critical Hits . | . . . Critical Kills . | . . . Critical Parts Destroyed . | . . . Melee Attacks 10 | . . 10 Impact . | . . . Slashing 10 | . . 10 Piercing . | . . . Sneak Attacks . | . . . Combat Hostiles . | . . . Follow-up Attacks . | . . . Damage Inflicted 1863 | 55 440 1368 Guns 1238 | 55 437 746 Cannons 616 | . . 616 Explosions . | . . . Melee . | . . . Ramming 9 | . 3 6 Kinetic 962 | . . 962 Thermal 599 | 25 200 374 Explosive . | . . . Electromagnetic 293 | 30 237 26 Impact . | . . . Slashing . | . . . Piercing . | . . . Highest Corruption 2 | . 2 . Average Corruption 2 | . 2 . Corruption Purged . | . . . Overload Shots . | . . . Overflow Damage 24 | . . 24 Projectiles 24 | . . 24 Explosions . | . . . Melee . | . . . Knockbacks . | . . . Impact . | . . . Kinetic . | . . . Secondary . | . . . Self-Inflicted Damage 3 | . . 3 Shots . | . . . Rammed 2 | . . 2 Targets Rammed 3 | . 1 2 Kicked 1 | . 1 . Crushed . | . . . Highest Temperature 321 | 42 321 217 Average Temperature 112 | 20 168 50 Received Heat Transfer 912 | . 156 756 Effects 1 | . 1 . Energy Bleed 1 | . 1 . Siege Activations . | . . . Robots Corrupted . | . . . Combat Hostiles . | . . . Parts Fried . | . . . Impact Corruptions . | . . . Robots Melted . | . . . Combat Hostiles . | . . . Parts Melted 1 | . 1 . Heat Transferred 1295 | 74 592 629 Parts Sabotaged . | . . . Parts Stolen . | . . . Parts Stripped . | . . . Power Chain Reactions . | . . . Missiles Intercepted . | . . . Alert | -11 -10 -9 ------- Run | Scr Mat Mat Peak Influence 446 | 5 111 446 Average Influence 189 | 4 59 259 Maximum Alert Level 2 | . . 2 Low Security (%) 53 | 100 100 29 Level 1 36 | . . 55 Level 2 10 | . . 15 Level 3 . | . . . Level 4 . | . . . Level 5 . | . . . High Security . | . . . Max Security . | . . . Squads Dispatched 7 | . 1 6 Investigation 4 | . 1 3 Extermination . | . . . Reinforcement 3 | . . 3 Assault . | . . . Garrison . | . . . Intercept . | . . . Construction Impeded . | . . . Haulers Reinforced . | . . . Stealth | -11 -10 -9 --------- Run | Scr Mat Mat Distress Signals 4 | . . 4 Communications Jammed . | . . . Distress Signals . | . . . Times Spotted 47 | . 6 41 Peak Tracking Total 9 | . 2 9 Tactical Retreats 6 | . 1 5 Traps | -11 -10 -9 ------- Run | Scr Mat Mat Traps Triggered 2 | . 1 1 Indirectly . | . . . Trap Hack Attempts . | . . . Triggered . | . . . Disarmed . | . . . Reprogrammed . | . . . Reused . | . . . Traps Extracted . | . . . Installed . | . . . Triggered . | . . . Machines | -11 -10 -9 ---------- Run | Scr Mat Mat Machines Disabled 2 | . . 2 Max in Single Turn 1 | . . 1 Machines Sabotaged . | . . . Garrisons Compromised . | . . . Overloaded Fab Kills . | . . . Fab Network Shutdowns . | . . . Hacking | -11 -10 -9 --------- Run | Scr Mat Mat Machines Accessed 3 | . 1 2 Terminals 3 | . 1 2 Fabricators . | . . . Repair Stations . | . . . Recycling Units . | . . . Scanalyzers . | . . . Garrison Access . | . . . Total Hacks 11 | . 5 6 Successful 8 | . 4 4 Failed 2 | . . 2 Catastrophic . | . . . Database Lockouts 1 | . 1 . Manual 6 | . 5 1 Terminals 11 | . 5 6 Fabricators . | . . . Repair Stations . | . . . Recycling Units . | . . . Scanalyzers . | . . . Garrison Access . | . . . Terminal Hacks 6 | . 3 3 Robot Analysis 1 | . 1 . Emergency Access Points 1 | . . 1 Alert Level 2 | . 1 1 Recall Investigation 1 | . 1 . Zone Layout 1 | . . 1 Fabricator Hacks . | . . . Repair Station Hacks . | . . . Recycling Unit Hacks . | . . . Scanalyzer . | . . . Garrison Access Hacks . | . . . Unauthorized Hacks 2 | . 1 1 Terminals 2 | . 1 1 Botnet 2 | . 1 1 Fabricators . | . . . Repair Stations . | . . . Recycling Units . | . . . Scanalyzers . | . . . Garrison Access . | . . . Data Cores Recovered . | . . . Used . | . . . Hacking Detections 2 | . . 2 Full Trace Events 2 | . . 2 Feedback Events . | . . . Feedback Blocked . | . . . Robot Schematics Acquired . | . . . Robots Built . | . . . Matter . | . . . Time . | . . . Total Robot Build Rating . | . . . Part Schematics Acquired . | . . . Parts Built . | . . . Matter . | . . . Time . | . . . Total Part Build Rating . | . . . Parts Repaired . | . . . Time . | . . . Parts Recycled . | . . . Recycled Matter . | . . . Retrieved Matter . | . . . Retrieved Components . | . . . Parts Scanalyzed . | . . . Part Schematics Acquired . | . . . Parts Damaged . | . . . Bothacking | -11 -10 -9 ------------ Run | Scr Mat Mat Used RIF Installer . | . . . Robots Hacked . | . . . Non-combat . | . . . Combat . | . . . Robot Hacks Applied . | . . . Relay Couplers Released . | . . . Robots Rewired . | . . . Allies Hacked . | . . . Hacks Repelled . | . . . Allies | -11 -10 -9 -------- Run | Scr Mat Mat Total Allies . | . . . Largest Group . | . . . Highest-Rated Group . | . . . Highest-Rated Ally . | . . . Total Orders . | . . . Ally Attacks . | . . . Total Damage . | . . . Kills . | . . . Allies Corrupted . | . . . Allies Melted . | . . . Intel | -11 -10 -9 ------- Run | Scr Mat Mat Robot Analysis Total 1 | . 1 . Derelict Logs Recovered . | . . . Drone Launches . | . . . Drone Recoveries . | . . . Exploration | -11 -10 -9 ------------- Run | Scr Mat Mat Turns Passed 1027 | 30 319 678 Spaces Moved 548 | 17 162 369 Core 5 | . . 5 Treads 3 | . . 3 Legs 181 | 17 162 2 Wheels 357 | . . 357 Hover 2 | . . 2 Flight . | . . . Fastest Speed 100 | 120 120 100 Average Speed 120 | 120 144 110 Slowest Speed 400 | 120 150 400 Overloaded Moves . | . . . Propulsion Burnouts . | . . . Robots Hopped . | . . . Cave-ins Triggered . | . . . Exploration Rate (%) 25 | 2 32 43 Regions Visited 2 Branch Regions . Pre-discovered Areas . | . . . Known Exits Taken . | . . . Unknown Exits Taken 2 | 1 1 . Scrap Searched . | . . . Spaces Dug 4 | . . 4 Terrain Destroyed 8 | . . 8 Melee 4 | . . 4 Projectile 4 | . . 4 AOE . | . . . Actions | -11 -10 -9 --------- Run | Scr Mat Mat Total 743 | 23 208 512 Wait 12 | . 5 7 Move 546 | 16 161 369 Hop . | . . . Pick Up 39 | 2 11 26 Fast Attach . | . . . Attach 25 | 1 3 21 Detach . | . . . Swap 3 | . . 3 Drop 12 | 2 5 5 Fire 93 | 2 22 69 Melee 10 | . . 10 Ram 2 | . . 2 Kick 1 | . 1 . Crush . | . . . Escape Stasis . | . . . Rewire . | . . . Trap . | . . . Miscellaneous . | . . . Route ------- -11/Scrapyard -10/Materials (discovered 2 exits: *Mat / [*Min]) -9/Materials History --------- Turn | Location | Event 7 | -11/Scrapyard | Discovered new exit (range 3) 31 | -11/Scrapyard | Entered Materials 35 | -10/Materials | Discovered new exit (range 15) 273 | -10/Materials | Central database locked down 318 | -10/Materials | Build established: Mutant 345 | -10/Materials | Discovered new exit (range 4) 350 | -10/Materials | Entered another Materials area 350 | -9/Materials | Evolved 2 slots: Propulsion x1, Utility x1 710 | -9/Materials | Core integrity fell below 50% 763 | -9/Materials | Lost 11 parts (1p4n2u4w) 854 | -9/Materials | Lost 3 parts (1p1n1w) 930 | -9/Materials | Core integrity fell below 20% 960 | -9/Materials | Build established: Scavenger-Mutant 1028 | -9/Materials | Destroyed by Y-45 Defender with Heavy Assault Rifle Last Messages --------------- 00859_ Acquired Katana. 00866_ Acquired 50 matter. 00869_ Acquired 37 matter. 00872_ Acquired Aluminum Leg. 00874_ Acquired Imp. Aluminum Leg. 00878_ Acquired Ion Engine. 00879_ Acquired 7 matter. 00922_ Hvy. Assault Rifle destroyed. 00937_ Triggered Alarm Trap. 00937_ An alarm sounds. 00937_ ALERT: Alarm triggered, dispatching investigation squad. 00943_ ALERT: Hostiles spotted, dispatching reinforcements to Terminal M004. 00943_ Hover Unit destroyed. 00982_ T-07 Excavator is excavating. 00995_ Ion Engine destroyed. 01004_ Com. Wheel destroyed. 01014_ Lgt. Armor Plating destroyed. 01018_ Hover Unit destroyed. 01025_ Lgt. Treads destroyed. Map ----- +----------------------------------------------------+ | | | | | | | | | | | | | | | | | | | | | | | | | | | | | | | | | | | ?????????????????????????????????????? | | ???########??????????????????????????? | | #### #????????######????????????? | | ########## ###??????????? | | #???????? | | #???????? | | #####"#### #????????????? | | #### #???##"####/#####??????????? | | ???### ####??#### gY @#??????????? | | ???# + gYg ! #??????????? | | ???# #??##### Y #??????????? | | ######## #??????# """"""" #??????????? | | #?## ##??????# """"""" #??????????? | | ""### ##???????# """"""" #??????????? | | T"## ##????????# """"""" #??????????? | | ""# ##?????????# """"""" #??????????? | | "##??????????###?????###??????????? | | ##????????????????????????????????? | | #?????????????????????????????????? | | #?????????????????????????????????? | | ####?????????????????????????????????? | | ?????????????????????????????????????? | | ?????????????????????????????????????? | | ?????????????????????????????????????? | | ?????????????????????????????????????? | | ?????????????????????????????????????? | | ?????????????????????????????????????? | | ?????????????????????????????????????? | | ?????????????????????????????????????? | | ?????????????????????????????????????? | | ?????????????????????????????????????? | | ?????????????????????????????????????? | | ?????????????????????????????????????? | +----------------------------------------------------+ Best States ------------- Heat Dissipation 38 Energy Generation 12 Energy Capacity 265 Matter Stores 300 Matter Capacity 300 Sight Range 16 Terrain Scan Density 10 Armor Coverage 150 Evasion (%) 40 Recoil Reduction 2 Defensive Hacking 10 Item Schematics ----------------- None Robot Schematics ------------------ None Fabricated ------------ Nothing Alien Tech Used ----------------- None Achievements -------------- None Challenges ------------ None Game ------ Seed DisruptorSeismicThrusters Manual? 0 Play Time 00:12:44 Cumulative 59.1 hours Start 2020.06.05 @ 09:57:24 End 2020.06.05 @ 10:08:54 Sessions 1 Manual Loads 0 Difficulty Rogue Special Mode None Game No. 140 Rogue 140 Adventurer 0 Explorer 0 Win Type - Total 0 Types 0/0/0/0/0/0/0 Lore% 31 Gallery% 50 Achievement% 32 Wizard Run 0 Options --------- ASCII 0 Keyboard 1 Movement Numpad Keybinds 0 Fullscreen 2 Font 18/SmallcapsGlow Map View 76x50 Tactical HUD 1 Map Filters NONE Filters NONE Steam 1 RUN: c11b8ba6-40c1-4698-ac75-529694103e1c